lending/lending_fUSD_20251111
["ID","MTS","AMOUNT","RATE_DAILY","PERIOD"]
[393585906,1762824336835,-500.0,0.00039708,120]
[393585907,1762824336873,-500.0,0.00039708,120]
[393585908,1762824336921,-500.0,0.00039708,120]
[393585909,1762824336970,-500.0,0.00039708,120]
[393585910,1762824337016,-500.0,0.00039708,120]
[393585911,1762824337068,-500.0,0.00039708,120]
[393585912,1762824337120,-500.0,0.00039708,120]
[393585913,1762824337167,-500.0,0.00039708,120]
[393585914,1762824337214,-500.0,0.00039708,120]
[393585915,1762824337261,-500.0,0.00039708,120]
[393585916,1762824337303,-564.67,0.00039708,120]
[393585917,1762824337349,-500.0,0.00039708,120]
[393585918,1762824337395,-328.32,0.00039708,120]
[393585919,1762824337439,-500.0,0.00039708,120]
[393585920,1762824337481,-217.52,0.00039708,120]
[393585921,1762824337526,-500.0,0.00039708,120]
[393585922,1762824337571,-500.0,0.00039708,120]
[393585923,1762824337615,-500.0,0.00039708,120]
[393585924,1762824337658,-500.0,0.00039708,120]
[393585925,1762824337701,-500.0,0.00039708,120]
[393585926,1762824337742,-500.0,0.00039708,120]
[393585927,1762824337786,-500.0,0.00039708,120]
[393585928,1762824337827,-177.93,0.00039708,120]
[393585929,1762824337869,-500.0,0.00039708,120]
[393585930,1762824337909,-500.0,0.00039708,120]
[393585931,1762824337944,-304.15726944,0.00039708,120]
[393585932,1762824337981,-500.0,0.00039708,120]
[393585933,1762824338019,-500.0,0.00039708,120]
[393585934,1762824338059,-500.0,0.00039708,120]
[393585935,1762824338101,-500.0,0.00039708,120]
[393585936,1762824338142,-500.0,0.00039708,120]
[393585937,1762824338184,-500.0,0.00039708,120]
[393585938,1762824338225,-500.0,0.00039708,120]
[393585939,1762824338266,-500.0,0.00039708,120]
[393585940,1762824338305,-285.46380445,0.00039708,120]
[393585941,1762824338348,-500.0,0.00039708,120]
[393585942,1762824338389,-280.62,0.00039708,120]
[393585943,1762824338429,-588.86,0.00039708,120]
[393585944,1762824338469,-500.0,0.00039708,120]
[393585945,1762824338509,-500.0,0.00039708,120]
[393585946,1762824338550,-500.0,0.00039708,120]
[393585947,1762824338590,-542.1755997,0.00039708,120]
[393585948,1762824338630,-500.0,0.00039708,120]
[393585949,1762824338668,-500.0,0.00039708,120]
[393585950,1762824338707,-500.0,0.00039708,120]
[393585951,1762824338747,-500.0,0.00039708,120]
[393585952,1762824338787,-500.0,0.00039708,120]
[393585953,1762824338829,-500.0,0.00039708,120]
[393585954,1762824338875,-218.96,0.00039708,120]
[393585955,1762824338922,-500.0,0.00039708,120]
[393585956,1762824338968,-500.0,0.00039708,120]
[393585957,1762824339014,-500.0,0.00039708,120]
[393585958,1762824339059,-500.0,0.00039708,120]
[393585959,1762824339104,-500.0,0.00039708,120]
[393585960,1762824339152,-500.0,0.00039708,120]
[393585961,1762824339199,-500.0,0.00039708,120]
[393585962,1762824339245,-500.0,0.00039708,120]
[393585963,1762824339290,-500.0,0.00039708,120]
[393585964,1762824339338,-500.0,0.00039708,120]
[393585965,1762824339386,-500.0,0.00039708,120]
[393585966,1762824339433,-500.0,0.00039708,120]
[393585967,1762824339637,-500.0,0.00039708,120]
[393585968,1762824339681,-500.0,0.00039708,120]
[393585969,1762824339717,-612.01744251,0.00039708,120]
[393585970,1762824339750,-500.0,0.00039708,120]
[393585971,1762824339784,-500.0,0.00039708,120]
[393585972,1762824339820,-500.0,0.00039708,120]
[393585973,1762824339853,-500.0,0.00039708,120]
[393585974,1762824339886,-500.0,0.00039708,120]
[393585975,1762824339918,-500.0,0.00039708,120]
[393585976,1762824339949,-549.02493434,0.00039708,120]
[393585977,1762824339981,-618.58,0.00039708,120]
[393585978,1762824340013,-500.0,0.00039708,120]
[393585979,1762824340044,-500.0,0.00039708,120]
[393585980,1762824340075,-500.0,0.00039708,120]
[393585981,1762824340104,-500.0,0.00039708,120]
[393585982,1762824340137,-500.0,0.00039708,120]
[393585983,1762824340167,-403.58,0.00039708,120]
[393585984,1762824340197,-500.0,0.00039708,120]
[393585985,1762824340228,-500.0,0.00039708,120]
[393585986,1762824340256,-523.2691755,0.00039708,120]
[393585987,1762824340287,-500.0,0.00039708,120]
[393585988,1762824340320,-500.0,0.00039708,120]
[393585989,1762824340352,-500.0,0.00039708,120]
[393585990,1762824340386,-500.0,0.00039708,120]
[393585991,1762824340419,-500.0,0.00039708,120]
[393585992,1762824340459,-500.0,0.00039708,120]
[393585993,1762824340506,-500.0,0.00039708,120]
[393585994,1762824340546,-500.0,0.00039708,120]
[393585995,1762824340587,-500.0,0.00039708,120]
[393585996,1762824340627,-500.0,0.00039708,120]
[393585997,1762824340660,-500.0,0.00039708,120]
[393585998,1762824340694,-500.0,0.00039708,120]
[393585999,1762824340724,-500.0,0.00039708,120]
[393586000,1762824340755,-500.0,0.00039708,120]
[393586001,1762824340786,-500.0,0.00039708,120]
[393586002,1762824340819,-500.0,0.00039708,120]
[393586003,1762824340849,-500.0,0.00039708,120]
[393586004,1762824340882,-461.28,0.00039708,120]
[393586005,1762824340912,-500.0,0.00039708,120]
[393586006,1762824340943,-500.0,0.00039708,120]
[393586007,1762824340974,-596.58297242,0.00039708,120]
[393586008,1762824341003,-500.0,0.00039708,120]
[393586009,1762824341033,-500.0,0.00039708,120]
[393586010,1762824341067,-500.0,0.00039708,120]
[393586011,1762824341098,-500.0,0.00039708,120]
[393586012,1762824341130,-500.0,0.00039708,120]
[393586013,1762824341161,-500.0,0.00039708,120]
[393586014,1762824341194,-500.0,0.00039708,120]
[393586015,1762824341225,-500.0,0.00039708,120]
[393586016,1762824341256,-500.0,0.00039708,120]
[393586017,1762824341288,-500.0,0.00039708,120]
[393586018,1762824341318,-252.96,0.00039708,120]
[393586019,1762824341350,-500.0,0.00039708,120]
[393586020,1762824341382,-228.86316836,0.00039708,120]
[393586021,1762824341413,-251.0082524,0.00039708,120]
[393586022,1762824341446,-550.9,0.00039708,120]
[393586023,1762824341478,-599.5613554,0.00039708,120]
[393586024,1762824341510,-262.30793691,0.00039708,120]
[393586025,1762824341543,-396.98470903,0.00039708,120]
[393586026,1762824341577,-500.0,0.00039708,120]
[393586027,1762824341610,-500.0,0.00039708,120]
[393586028,1762824341644,-500.0,0.00039708,120]
[393586029,1762824341676,-500.0,0.00039708,120]
[393586030,1762824341710,-500.0,0.00039708,120]
[393586031,1762824341742,-500.0,0.00039708,120]
[393586032,1762824341776,-500.0,0.00039708,120]
[393586033,1762824341808,-500.0,0.00039708,120]
[393586034,1762824341844,-500.0,0.00039708,120]
[393586035,1762824341876,-500.0,0.00039708,120]
[393586036,1762824341907,-500.0,0.00039708,120]
[393586037,1762824341937,-500.0,0.00039708,120]
[393586038,1762824341968,-500.0,0.00039708,120]
[393586039,1762824341999,-500.0,0.00039708,120]
[393586040,1762824342030,-640.07138649,0.00039708,120]
[393586041,1762824342067,-500.0,0.00039708,120]
[393586042,1762824342098,-500.0,0.00039708,120]
[393586043,1762824342130,-500.0,0.00039708,120]
[393586044,1762824342159,-500.0,0.00039708,120]
[393586045,1762824342189,-542.23716928,0.00039708,120]
[393586046,1762824342220,-500.0,0.00039708,120]
[393586047,1762824342252,-500.0,0.00039708,120]
[393586048,1762824342284,-500.0,0.00039708,120]
[393586049,1762824342320,-500.0,0.00039708,120]
[393586050,1762824342351,-500.0,0.00039708,120]
[393586051,1762824342383,-500.0,0.00039708,120]
[393586052,1762824342416,-500.0,0.00039708,120]
[393586053,1762824342447,-574.39892343,0.00039708,120]
[393586054,1762824342476,-500.0,0.00039708,120]
[393586055,1762824342507,-500.0,0.00039708,120]
[393586056,1762824342537,-500.0,0.00039708,120]
[393586057,1762824342569,-500.0,0.00039708,120]
[393586058,1762824342599,-500.0,0.00039708,120]
[393586059,1762824342806,-500.0,0.00039708,120]
[393586060,1762824342844,-500.0,0.00039708,120]
[393586061,1762824342874,-500.0,0.00039708,120]
[393586062,1762824342903,-500.0,0.00039708,120]
[393586063,1762824342932,-500.0,0.00039708,120]
[393586064,1762824342961,-500.0,0.00039708,120]
[393586065,1762824342991,-500.0,0.00039708,120]
[393586066,1762824343020,-500.0,0.00039708,120]
[393586067,1762824343049,-500.0,0.00039708,120]
[393586068,1762824343081,-500.0,0.00039708,120]
[393586069,1762824343110,-572.12,0.00039708,120]
[393586070,1762824343142,-500.0,0.00039708,120]
[393586071,1762824343172,-500.0,0.00039708,120]
[393586072,1762824343203,-500.0,0.00039708,120]
[393586073,1762824343231,-582.24,0.00039708,120]
[393586074,1762824343260,-500.0,0.00039708,120]
[393586075,1762824343290,-500.0,0.00039708,120]
[393586076,1762824343320,-500.0,0.00039708,120]
[393586077,1762824343350,-500.0,0.00039708,120]
[393586078,1762824343380,-500.0,0.00039708,120]
[393586079,1762824343409,-500.0,0.00039708,120]
[393586080,1762824343438,-566.90775963,0.00039708,120]
[393586081,1762824343469,-500.0,0.00039708,120]
[393586082,1762824343500,-500.0,0.00039708,120]
[393586083,1762824343531,-500.0,0.00039708,120]
[393586084,1762824343563,-500.0,0.00039708,120]
[393586085,1762824343598,-544.60268999,0.00039708,120]
[393586086,1762824343629,-500.0,0.00039708,120]
[393586087,1762824343660,-500.0,0.00039708,120]
[393586088,1762824343691,-500.0,0.00039708,120]
[393586089,1762824343720,-500.0,0.00039708,120]
[393586090,1762824343751,-500.0,0.00039708,120]
[393586091,1762824343780,-500.0,0.00039708,120]
[393586092,1762824343811,-159.05330415,0.00039708,120]
[393586093,1762824343842,-174.60192261,0.00039708,120]
[393586094,1762824343872,-500.0,0.00039708,120]
[393586095,1762824343902,-500.0,0.00039708,120]
[393586096,1762824343931,-500.0,0.00039708,120]
[393586097,1762824343960,-500.0,0.00039708,120]
[393586098,1762824343990,-500.0,0.00039708,120]
[393586099,1762824344020,-500.0,0.00039708,120]
[393586100,1762824344050,-542.94335961,0.00039708,120]
[393586101,1762824344088,-500.0,0.00039708,120]
[393586102,1762824344120,-500.0,0.00039708,120]
[393586103,1762824344151,-742.38,0.00039708,120]
[393586104,1762824344181,-500.0,0.00039708,120]
[393586105,1762824344213,-742.38,0.00039708,120]
[393586106,1762824344243,-500.0,0.00039708,120]
[393586107,1762824344273,-742.38,0.00039708,120]
[393586108,1762824344303,-500.0,0.00039708,120]
[393586109,1762824344338,-742.38,0.00039708,120]
[393586110,1762824344371,-385.34600703,0.00039708,120]
[393586111,1762824344403,-500.0,0.00039708,120]
[393586112,1762824344434,-742.38,0.00039708,120]
[393586113,1762824344465,-500.0,0.00039708,120]
[393586114,1762824344497,-742.38,0.00039708,120]
[393586115,1762824344530,-182.30122481,0.00039708,120]
[393586116,1762824344566,-264.61279781,0.00039708,120]
[393586117,1762824344601,-742.38,0.00039708,120]
[393586118,1762824344633,-742.38,0.00039708,120]
[393586119,1762824344664,-742.38,0.00039708,120]
[393586120,1762824344694,-188.24382151,0.00039708,120]
[393586121,1762824344723,-742.38,0.00039708,120]
[393586122,1762824344753,-742.38,0.00039708,120]
[393586123,1762824344784,-438.93961234,0.00039708,120]
[393586124,1762824344819,-742.38,0.00039708,120]
[393586125,1762824344851,-742.38,0.00039708,120]
[393586126,1762824344883,-742.38,0.00039708,120]
[393586127,1762824344914,-742.38,0.00039708,120]
[393586128,1762824344943,-423.87995507,0.00039708,120]
[393586129,1762824344972,-742.38,0.00039708,120]
[393586130,1762824345004,-742.38,0.00039708,120]
[393586131,1762824345044,-742.38,0.00039708,120]
[393586132,1762824345073,-372.67152401,0.00039708,120]
[393586133,1762824345103,-742.38,0.00039708,120]
[393586134,1762824345133,-742.38,0.00039708,120]
[393586135,1762824345161,-510.785209,0.00039708,120]
[393586136,1762824345193,-742.38,0.00039708,120]
[393586137,1762824345222,-742.38,0.00039708,120]
[393586138,1762824345251,-742.38,0.00039708,120]
[393586139,1762824345279,-742.49738873,0.00039708,120]
[393586140,1762824345310,-500.0,0.00039708,120]
[393586141,1762824345340,-209.20020703,0.00039708,120]
[393586142,1762824345370,-400.0,0.00039708,120]
[393586143,1762824345402,-541.54743996,0.00039708,120]
[393586144,1762824345432,-604.68004546,0.00039708,120]
[393586145,1762824345464,-153.745249,0.00039708,120]
[393586146,1762824345495,-526.06706655,0.00039708,120]
[393586147,1762824345526,-261.01305369,0.00039708,120]
[393586148,1762824345556,-439.22981736,0.00039708,120]
[393586149,1762824345587,-180.94001892,0.00039708,120]
[393586150,1762824345616,-331.29831087,0.00039708,120]
[393586151,1762824345645,-536.60579659,0.00039708,120]
[393586152,1762824345675,-500.0,0.00039708,120]
[393586153,1762824345705,-500.0,0.00039708,120]
[393586154,1762824345893,-500.0,0.00039708,120]
[393586155,1762824345925,-500.0,0.00039708,120]
[393586156,1762824345955,-500.0,0.00039708,120]
[393586157,1762824345985,-500.0,0.00039708,120]
[393586158,1762824346015,-500.0,0.00039708,120]
[393586159,1762824346044,-500.0,0.00039708,120]
[393586160,1762824346074,-500.0,0.00039708,120]
[393586161,1762824346104,-500.0,0.00039708,120]
[393586162,1762824346137,-234.34377553,0.00039708,120]
[393586163,1762824346166,-264.96080662,0.00039708,120]
[393586164,1762824346195,-500.0,0.00039708,120]
[393586165,1762824346223,-479.94531546,0.00039708,120]
[393586166,1762824346251,-165.84735494,0.00039708,120]
[393586167,1762824346282,-312.42966521,0.00039708,120]
[393586168,1762824346312,-357.91,0.00039708,120]
[393586169,1762824346342,-399.78096582,0.00039708,120]
[393586170,1762824346371,-351.46015555,0.00039708,120]
[393586171,1762824346400,-493.96710342,0.00039708,120]
[393586172,1762824346430,-480.89375338,0.00039708,120]
[393586173,1762824346460,-179.29042893,0.00039708,120]
[393586174,1762824346490,-500.0,0.00039708,120]
[393586175,1762824346521,-500.0,0.00039708,120]
[393586176,1762824346552,-477.88002983,0.00039708,120]
[393586177,1762824346584,-500.0,0.00039708,120]
[393586178,1762824346615,-500.0,0.00039708,120]
[393586179,1762824346646,-500.0,0.00039708,120]
[393586180,1762824346677,-210.71074878,0.00039708,120]
[393586181,1762824346706,-500.0,0.00039708,120]
[393586182,1762824346735,-207.35265764,0.00039708,120]
[393586183,1762824346764,-500.0,0.00039708,120]
[393586184,1762824346793,-500.0,0.00039708,120]
[393586185,1762824346823,-500.0,0.00039708,120]
[393586186,1762824346853,-500.0,0.00039708,120]
[393586187,1762824346882,-237.94445735,0.00039708,120]
[393586188,1762824346912,-500.0,0.00039708,120]
[393586189,1762824346940,-500.0,0.00039708,120]
[393586190,1762824346970,-500.0,0.00039708,120]
[393586191,1762824346998,-500.0,0.00039708,120]
[393586192,1762824347027,-500.0,0.00039708,120]
[393586193,1762824347056,-454.84914158,0.00039708,120]
[393586194,1762824347089,-500.0,0.00039708,120]
[393586195,1762824347121,-500.0,0.00039708,120]
[393586196,1762824347152,-500.0,0.00039708,120]
[393586197,1762824347183,-500.0,0.00039708,120]
[393586198,1762824347213,-399.35865086,0.00039708,120]
[393586199,1762824347242,-427.89236848,0.00039708,120]
[393586200,1762824347272,-415.10715632,0.00039708,120]
[393586201,1762824347301,-301.24929524,0.00039708,120]
[393586202,1762824347333,-500.0,0.00039708,120]
[393586203,1762824347364,-548.29749243,0.00039708,120]
[393586204,1762824347397,-212.30318778,0.00039708,120]
[393586205,1762824347428,-313.00449026,0.00039708,120]
[393586206,1762824347459,-423.91683346,0.00039708,120]
[393586207,1762824347491,-313.42034839,0.00039708,120]
[393586208,1762824347521,-500.0,0.00039708,120]
[393586209,1762824347556,-449.27277762,0.00039708,120]
[393586210,1762824347588,-407.13770201,0.00039708,120]
[393586211,1762824347619,-236.57401158,0.00039708,120]
[393586212,1762824347648,-419.39406779,0.00039708,120]
[393586213,1762824347677,-315.07392558,0.00039708,120]
[393586214,1762824347706,-500.0,0.00039708,120]
[393586215,1762824347736,-500.0,0.00039708,120]
[393586216,1762824347766,-500.0,0.00039708,120]
[393586217,1762824347796,-500.0,0.00039708,120]
[393586218,1762824347830,-500.0,0.00039708,120]
[393586219,1762824347860,-500.0,0.00039708,120]
[393586220,1762824347891,-500.0,0.00039708,120]
[393586221,1762824347920,-500.0,0.00039708,120]
[393586222,1762824347950,-500.0,0.00039708,120]
[393586223,1762824347979,-500.0,0.00039708,120]
[393586224,1762824348008,-179.8995049,0.00039708,120]
[393586225,1762824348040,-500.0,0.00039708,120]
[393586226,1762824348070,-500.0,0.00039708,120]
[393586227,1762824348100,-403.58385643,0.00039708,120]
[393586228,1762824348131,-461.69834254,0.00039708,120]
[393586229,1762824348160,-500.0,0.00039708,120]
[393586230,1762824348189,-500.0,0.00039708,120]
[393586231,1762824348221,-456.92,0.00039708,120]
[393586232,1762824348251,-400.0,0.00039708,120]
[393586233,1762824348281,-449.00969218,0.00039708,120]
[393586234,1762824348311,-500.0,0.00039708,120]
[393586235,1762824348343,-500.0,0.00039708,120]
[393586236,1762824348374,-393.5778464,0.00039708,120]
[393586237,1762824348407,-500.0,0.00039708,120]
[393586238,1762824348439,-500.0,0.00039708,120]
[393586239,1762824348469,-321.39284342,0.00039708,120]
[393586240,1762824348500,-500.0,0.00039708,120]
[393586241,1762824348530,-305.53223513,0.00039708,120]
[393586242,1762824348561,-500.0,0.00039708,120]
[393586243,1762824348593,-500.0,0.00039708,120]
[393586244,1762824348624,-500.0,0.00039708,120]
[393586245,1762824348674,-500.0,0.00039708,120]
[393586246,1762824348707,-500.0,0.00039708,120]
[393586247,1762824348739,-500.0,0.00039708,120]
[393586248,1762824348769,-500.0,0.00039708,120]
[393586249,1762824349016,-500.0,0.00039708,120]
[393586250,1762824349048,-500.0,0.00039708,120]
[393586251,1762824349077,-500.0,0.00039708,120]
[393586252,1762824349107,-490.37,0.00039708,120]
[393586253,1762824349140,-471.33803176,0.00039708,120]
[393586254,1762824349168,-408.25981427,0.00039708,120]
[393586255,1762824349197,-495.66383243,0.00039708,120]
[393586256,1762824349226,-591.31149877,0.00039708,120]
[393586257,1762824349254,-451.62324722,0.00039708,120]
[393586258,1762824349282,-338.94593232,0.00039708,120]
[393586259,1762824349311,-364.43481686,0.00039708,120]
[393586260,1762824349344,-460.54094927,0.00039708,120]
[393586261,1762824349375,-184.33861167,0.00039708,120]
[393586262,1762824349405,-183.52645214,0.00039708,120]
[393586263,1762824349435,-266.22472155,0.00039708,120]
[393586264,1762824349465,-202.45819224,0.00039708,120]
[393586265,1762824349495,-185.44239658,0.00039708,120]
[393586266,1762824349525,-500.0,0.00039708,120]
[393586267,1762824349555,-500.0,0.00039708,120]
[393586268,1762824349587,-500.0,0.00039708,120]
[393586269,1762824349617,-500.0,0.00039708,120]
[393586270,1762824349652,-272.41701809,0.00039708,120]
[393586271,1762824349682,-301.61413399,0.00039708,120]
[393586272,1762824349713,-500.0,0.00039708,120]
[393586273,1762824349743,-372.50129481,0.00039708,120]
[393586274,1762824349774,-500.0,0.00039708,120]
[393586275,1762824349804,-446.3750778,0.00039708,120]
[393586276,1762824349838,-500.0,0.00039708,120]
[393586277,1762824349870,-500.0,0.00039708,120]
[393586278,1762824349903,-500.0,0.00039708,120]
[393586279,1762824349934,-500.0,0.00039708,120]
[393586280,1762824349964,-500.0,0.00039708,120]
[393586281,1762824349994,-500.0,0.00039708,120]
[393586282,1762824350025,-500.0,0.00039708,120]
[393586283,1762824350057,-342.53097103,0.00039708,120]
[393586284,1762824350087,-185.1864851,0.00039708,120]
[393586285,1762824350118,-500.0,0.00039708,120]
[393586286,1762824350153,-500.0,0.00039708,120]
[393586287,1762824350184,-277.52,0.00039708,120]
[393586288,1762824350213,-345.54286405,0.00039708,120]
[393586289,1762824350242,-298.065909,0.00039708,120]
[393586290,1762824350272,-387.11957677,0.00039708,120]
[393586291,1762824350302,-200.42374876,0.00039708,120]
[393586292,1762824350332,-234.94865593,0.00039708,120]
[393586293,1762824350363,-309.96170927,0.00039708,120]
[393586294,1762824350394,-500.0,0.00039708,120]
[393586295,1762824350424,-500.0,0.00039708,120]
[393586296,1762824350454,-500.0,0.00039708,120]
[393586297,1762824350485,-257.61716605,0.00039708,120]
[393586298,1762824350515,-500.0,0.00039708,120]
[393586299,1762824350546,-500.0,0.00039708,120]
[393586300,1762824350582,-500.0,0.00039708,120]
[393586301,1762824350612,-500.0,0.00039708,120]
[393586302,1762824350641,-443.42960828,0.00039708,120]
[393586303,1762824350670,-500.0,0.00039708,120]
[393586304,1762824350698,-500.0,0.00039708,120]
[393586305,1762824350727,-474.21842019,0.00039708,120]
[393586306,1762824350756,-500.0,0.00039708,120]
[393586307,1762824350785,-500.0,0.00039708,120]
[393586308,1762824350814,-500.0,0.00039708,120]
[393586309,1762824350844,-500.0,0.00039708,120]
[393586310,1762824350875,-500.0,0.00039708,120]
[393586311,1762824350905,-500.0,0.00039708,120]
[393586312,1762824350933,-200.22259146,0.00039708,120]
[393586313,1762824350964,-500.0,0.00039708,120]
[393586314,1762824350995,-500.0,0.00039708,120]
[393586315,1762824351028,-500.0,0.00039708,120]
[393586316,1762824351064,-500.0,0.00039708,120]
[393586317,1762824351100,-248.05025567,0.00039708,120]
[393586318,1762824351142,-500.0,0.00039708,120]
[393586319,1762824351178,-206.92,0.00039708,120]
[393586321,1762824351209,-272.04534589,0.00039708,120]
[393586322,1762824351241,-500.0,0.00039708,120]
[393586323,1762824351273,-500.0,0.00039708,120]
[393586324,1762824351313,-500.0,0.00039708,120]
[393586325,1762824351351,-500.0,0.00039708,120]
[393586326,1762824351400,-424.35503905,0.00039708,120]
[393586327,1762824351435,-500.0,0.00039708,120]
[393586328,1762824351468,-500.0,0.00039708,120]
[393586329,1762824351503,-500.0,0.00039708,120]
[393586330,1762824351537,-500.0,0.00039708,120]
[393586331,1762824351570,-500.0,0.00039708,120]
[393586332,1762824351604,-500.0,0.00039708,120]
[393586333,1762824351639,-168.68417115,0.00039708,120]
[393586334,1762824351673,-500.0,0.00039708,120]
[393586335,1762824351705,-500.0,0.00039708,120]
[393586336,1762824351737,-279.69487573,0.00039708,120]
[393586337,1762824351768,-177.02,0.00039708,120]
[393586338,1762824351800,-301.99283086,0.00039708,120]
[393586339,1762824351832,-172.26045471,0.00039708,120]
[393586340,1762824351862,-434.4736352,0.00039708,120]
[393586341,1762824351896,-212.74730254,0.00039708,120]
[393586342,1762824351927,-505.85335859,0.00039708,120]
[393586343,1762824351956,-500.0,0.00039708,120]
[393586344,1762824351988,-500.0,0.00039708,120]
[393586345,1762824352018,-500.0,0.00039708,120]
[393586346,1762824352264,-440.45957424,0.00039708,120]
[393586347,1762824352296,-500.0,0.00039708,120]
[393586348,1762824352326,-500.0,0.00039708,120]
[393586349,1762824352357,-500.0,0.00039708,120]
[393586350,1762824352386,-423.92063751,0.00039708,120]
[393586351,1762824352416,-500.0,0.00039708,120]
[393586352,1762824352445,-500.0,0.00039708,120]
[393586353,1762824352475,-415.33403162,0.00039708,120]
[393586354,1762824352505,-500.0,0.00039708,120]
[393586355,1762824352535,-500.0,0.00039708,120]
[393586356,1762824352564,-500.0,0.00039708,120]
[393586357,1762824352596,-500.0,0.00039708,120]
[393586358,1762824352625,-500.0,0.00039708,120]
[393586359,1762824352653,-500.0,0.00039708,120]
[393586360,1762824352682,-500.0,0.00039708,120]
[393586361,1762824352709,-500.0,0.00039708,120]
[393586362,1762824352738,-251.16865882,0.00039708,120]
[393586363,1762824352765,-304.04269117,0.00039708,120]
[393586364,1762824352793,-434.32748827,0.00039708,120]
[393586365,1762824352823,-500.0,0.00039708,120]
[393586366,1762824352851,-500.0,0.00039708,120]
[393586367,1762824352879,-400.90005865,0.00039708,120]
[393586368,1762824352907,-500.0,0.00039708,120]
[393586369,1762824352936,-500.0,0.00039708,120]
[393586370,1762824352963,-500.0,0.00039708,120]
[393586371,1762824352990,-500.0,0.00039708,120]
[393586372,1762824353018,-500.0,0.00039708,120]
[393586373,1762824353047,-500.0,0.00039708,120]
[393586374,1762824353075,-380.76259478,0.00039708,120]
[393586375,1762824353106,-500.0,0.00039708,120]
[393586376,1762824353144,-500.0,0.00039708,120]
[393586377,1762824353175,-500.0,0.00039708,120]
[393586378,1762824353204,-639.74,0.00039708,120]
[393586379,1762824353234,-500.0,0.00039708,120]
[393586380,1762824353265,-500.0,0.00039708,120]
[393586381,1762824353295,-500.0,0.00039708,120]
[393586382,1762824353327,-500.0,0.00039708,120]
[393586383,1762824353360,-248.02772966,0.00039708,120]
[393586384,1762824353392,-220.13782379,0.00039708,120]
[393586385,1762824353424,-474.71727212,0.00039708,120]
[393586386,1762824353457,-500.0,0.00039708,120]
[393586387,1762824353493,-500.0,0.00039708,120]
[393586388,1762824353527,-500.0,0.00039708,120]
[393586389,1762824353561,-436.65,0.00039708,120]
[393586390,1762824353595,-198.20545307,0.00039708,120]
[393586391,1762824353626,-302.26725402,0.00039708,120]
[393586392,1762824353657,-235.92002038,0.00039708,120]
[393586393,1762824353695,-177.06381769,0.00039708,120]
[393586394,1762824353744,-313.42813275,0.00039708,120]
[393586395,1762824353795,-239.66925668,0.00039708,120]
[393586396,1762824353840,-192.89301391,0.00039708,120]
[393586397,1762824353890,-542.12706893,0.00039708,120]
[393586398,1762824353941,-340.50456334,0.00039708,120]
[393586399,1762824353992,-432.23747339,0.00039708,120]
[393586400,1762824354045,-500.0,0.00039708,30]
[393586401,1762824354090,-500.0,0.00039708,30]
[393586402,1762824354134,-500.0,0.00039708,30]
[393586403,1762824354181,-500.0,0.00039708,30]
[393586404,1762824354223,-500.0,0.00039708,30]
[393586405,1762824354264,-500.0,0.00039708,30]
[393586406,1762824354308,-500.0,0.00039708,30]